fUSD/lending_fUSD_20260506
["ID","MTS","AMOUNT","RATE_DAILY","PERIOD"]
[421732670,1778075444000,-782.66972067,0.00039726,15]
[421732683,1778075444000,-782.66972067,0.00039726,15]
[421732673,1778075444000,-782.66972067,0.00039726,15]
[421732677,1778075444000,-782.66972067,0.00039726,15]
[421732672,1778075444000,-782.66972067,0.00039726,15]
[421732684,1778075444000,-782.66972067,0.00039726,15]
[421732686,1778075444000,-782.66972067,0.00039726,15]
[421732687,1778075444000,-782.66972067,0.00039726,15]
[421732688,1778075444000,-782.66972067,0.00039726,15]
[421732676,1778075444000,-782.66972067,0.00039726,15]
[421732685,1778075444000,-782.66972067,0.00039726,15]
[421732705,1778075444000,-782.66972067,0.00039726,15]
[421732704,1778075444000,-782.66972067,0.00039726,15]
[421732697,1778075444000,-782.66972067,0.00039726,15]
[421732706,1778075444000,-782.66972067,0.00039726,15]
[421732691,1778075444000,-782.66972067,0.00039726,15]
[421732699,1778075444000,-782.66972067,0.00039726,15]
[421732700,1778075444000,-782.66972067,0.00039726,15]
[421732692,1778075444000,-782.66972067,0.00039726,15]
[421732694,1778075444000,-782.66972067,0.00039726,15]
[421732690,1778075444000,-782.66972067,0.00039726,15]
[421732689,1778075444000,-782.66972067,0.00039726,15]
[421732693,1778075444000,-782.66972067,0.00039726,15]
[421732696,1778075444000,-782.66972067,0.00039726,15]
[421732777,1778075445000,-159.49821985,0.0004094,7]
[421732772,1778075445000,-152.0,0.00040742,7]
[421732780,1778075445000,-153.21,0.00040962,120]
[421732771,1778075445000,-152.0,0.00040742,7]
[421732770,1778075445000,-2459.22649375,0.0004074,2]
[421732774,1778075445000,-153.21,0.00040862,120]
[421732773,1778075445000,-153.21,0.00040762,120]
[421732769,1778075445000,-153.21,0.00040662,120]
[421732779,1778075445000,-246202.0,0.0004095,60]
[421732778,1778075445000,-500.0,0.00040949,2]
[421732781,1778075445000,-3002.95787422,0.00041,2]
[421732776,1778075445000,-214.60306816,0.0004094,10]
[421732799,1778075445000,-500.0,0.00041208,70]
[421732782,1778075445000,-10000.0,0.00041,2]
[421732783,1778075445000,-3000.0,0.00041,30]
[421732785,1778075445000,-1100.0,0.0004104,21]
[421732787,1778075445000,-1142.1,0.00041041,120]
[421732784,1778075445000,-520.12089416,0.0004104,21]
[421732788,1778075445000,-1095.59762013,0.00041062,50]
[421732791,1778075445000,-1169.1012491,0.00041062,50]
[421732789,1778075445000,-1090.77301966,0.00041062,50]
[421732790,1778075445000,-1132.68565874,0.00041062,50]
[421732792,1778075445000,-153.21,0.00041062,120]
[421732794,1778075445000,-412.19177907,0.00041096,2]
[421732793,1778075445000,-1560.0,0.00041096,120]
[421732765,1778075445000,-153.21,0.00040362,120]
[421732775,1778075445000,-451.94273924,0.00040868,5]
[421732768,1778075445000,-153.21,0.00040562,120]
[421732749,1778075445000,-526.42,0.0004029,60]
[421732767,1778075445000,-153.21,0.00040462,120]
[421732744,1778075445000,-4304.0,0.00040212,30]
[421732743,1778075445000,-257.35954785,0.00040201,2]
[421732738,1778075445000,-4304.0,0.00040081,30]
[421732737,1778075445000,-153.21,0.00040062,120]
[421732742,1778075445000,-4304.0,0.00040169,30]
[421732740,1778075445000,-4304.0,0.00040125,30]
[421732741,1778075445000,-153.21,0.00040162,120]
[421732736,1778075445000,-4304.0,0.00040037,30]
[421732739,1778075445000,-300.0,0.000401,10]
[421732745,1778075445000,-4311.0,0.00040256,30]
[421732753,1778075445000,-250.0,0.00040321,5]
[421732746,1778075445000,-153.21,0.00040262,120]
[421732747,1778075445000,-150.0,0.00040264,7]
[421732754,1778075445000,-450.0,0.0004033,2]
[421732756,1778075445000,-450.0,0.0004033,2]
[421732750,1778075445000,-5068.35,0.0004029,60]
[421732755,1778075445000,-450.0,0.0004033,2]
[421732748,1778075445000,-161.3407,0.00040269,2]
[421732752,1778075445000,-11191.0,0.000403,30]
[421732751,1778075445000,-22021.98,0.000403,7]
[421732758,1778075445000,-450.0,0.0004033,2]
[421732759,1778075445000,-450.0,0.0004033,2]
[421732760,1778075445000,-450.0,0.0004033,2]
[421732761,1778075445000,-450.0,0.0004033,2]
[421732757,1778075445000,-450.0,0.0004033,2]
[421732762,1778075445000,-450.0,0.0004033,2]
[421732766,1778075445000,-259.01,0.00040404,120]
[421732764,1778075445000,-335.0,0.0004033,2]
[421732798,1778075445000,-2500.0,0.000412,120]
[421732786,1778075445000,-500.0,0.0004104,21]
[421732796,1778075445000,-1110.035091,0.0004116,120]
[421732832,1778075445000,-250.0,0.00041616,93]
[421732823,1778075445000,-925.0,0.00041587,2]
[421732841,1778075445000,-152.02,0.00041735,30]
[421732843,1778075445000,-1257.53274291,0.00041737,30]
[421732844,1778075445000,-150.0,0.00041737,30]
[421732834,1778075445000,-1560.0,0.00041644,120]
[421732838,1778075445000,-845.36104845,0.000417,60]
[421732837,1778075445000,-170.0,0.000417,120]
[421732835,1778075445000,-153.21,0.00041662,120]
[421732846,1778075445000,-150.0,0.00041737,30]
[421732836,1778075445000,-1142.1,0.00041694,120]
[421732833,1778075445000,-250.0,0.00041616,93]
[421732839,1778075445000,-3769.14,0.000417,14]
[421732842,1778075445000,-150.0,0.00041737,30]
[421732840,1778075445000,-456.1,0.00041735,30]
[421732845,1778075445000,-3185.71897577,0.00041737,30]
[421732847,1778075445000,-663.34797804,0.00041737,30]
[421732848,1778075445000,-153.21,0.00041762,120]
[421732851,1778075445000,-150.0,0.0004179,120]
[421732857,1778075445000,-77266.21190035,0.000418,30]
[421732849,1778075445000,-150.0,0.0004179,120]
[421732850,1778075445000,-150.0,0.0004179,120]
[421732852,1778075445000,-150.0,0.0004179,120]
[421732855,1778075445000,-500.0,0.00041799,14]
[421732853,1778075445000,-150.0,0.0004179,120]
[421732856,1778075445000,-691.83,0.000418,120]
[421732797,1778075445000,-153.21,0.00041162,120]
[421732828,1778075445000,-500.0,0.00041599,78]
[421732827,1778075445000,-417.0,0.00041587,2]
[421732854,1778075445000,-299.20200052,0.0004179,120]
[421732825,1778075445000,-1221.0,0.00041587,2]
[421732831,1778075445000,-163.0,0.00041614,11]
[421732801,1778075445000,-500.0,0.00041233,28]
[421732805,1778075445000,-200.0,0.00041355,10]
[421732803,1778075445000,-350.0,0.00041301,2]
[421732795,1778075445000,-25080.58,0.000411,7]
[421732800,1778075445000,-26419.47974753,0.00041209,70]
[421732802,1778075445000,-153.21,0.00041262,120]
[421732808,1778075445000,-234.62,0.000414,30]
[421732806,1778075445000,-153.21,0.00041362,120]
[421732807,1778075445000,-1560.0,0.0004137,120]
[421732817,1778075445000,-500.0,0.000415,45]
[421732812,1778075445000,-500.0,0.000415,45]
[421732811,1778075445000,-500.0,0.00041495,13]
[421732815,1778075445000,-500.0,0.000415,45]
[421732804,1778075445000,-257.35954785,0.00041302,3]
[421732819,1778075445000,-153.21,0.00041562,120]
[421732813,1778075445000,-500.0,0.000415,45]
[421732826,1778075445000,-6043.0,0.00041587,2]
[421732821,1778075445000,-624.0,0.00041587,2]
[421732820,1778075445000,-1352.0,0.00041587,2]
[421732829,1778075445000,-500.0,0.00041599,36]
[421732830,1778075445000,-160.0,0.000416,78]
[421732822,1778075445000,-3536.0,0.00041587,2]
[421732810,1778075445000,-153.21,0.00041462,120]
[421732809,1778075445000,-500.0,0.00041416,2]
[421732816,1778075445000,-500.0,0.000415,45]
[421732818,1778075445000,-150.0,0.00041558,120]
[421732824,1778075445000,-1268.0,0.00041587,2]
[421732814,1778075445000,-500.0,0.000415,45]
[421732894,1778075446000,-2009.6201916,0.00041998,2]
[421732902,1778075446000,-500.0,0.00041999,2]
[421732891,1778075446000,-500.0,0.00041984,93]
[421732887,1778075446000,-1560.0,0.00041918,120]
[421732885,1778075446000,-150.0,0.00041917,120]
[421732881,1778075446000,-150.54233273,0.000419,120]
[421732904,1778075446000,-500.0,0.00041999,120]
[421732889,1778075446000,-260.68,0.00041962,12]
[421732886,1778075446000,-150.0,0.00041917,120]
[421732883,1778075446000,-150.0,0.00041917,120]
[421732897,1778075446000,-500.0,0.00041999,2]
[421732893,1778075446000,-32073.7076107,0.00041998,2]
[421732906,1778075446000,-500.0,0.00041999,7]
[421732892,1778075446000,-500.0,0.00041989,60]
[421732908,1778075446000,-500.0,0.00041999,30]
[421732895,1778075446000,-29587.2246008,0.00041998,2]
[421732910,1778075446000,-500.0,0.00041999,10]
[421732900,1778075446000,-500.0,0.00041999,2]
[421732898,1778075446000,-500.0,0.00041999,2]
[421732888,1778075446000,-10626.36,0.00041962,12]
[421732914,1778075446000,-500.0,0.00041999,90]
[421732890,1778075446000,-153.21,0.00041962,120]
[421732884,1778075446000,-150.0,0.00041917,120]
[421732867,1778075446000,-151.0,0.000418,7]
[421732882,1778075446000,-154.99317027,0.00041904,2]
[421732926,1778075446000,-539.24,0.00041999,120]
[421732858,1778075446000,-3549.4941997,0.000418,30]
[421732861,1778075446000,-891.9241332,0.0003827,2]
[421732863,1778075446000,-162561.22238771,0.000418,30]
[421732862,1778075446000,-275.42151219,0.000418,30]
[421732859,1778075446000,-6347.65000005,0.000418,30]
[421732860,1778075446000,-2000.0,0.00029637,7]
[421732865,1778075446000,-151.0,0.000418,120]
[421732875,1778075446000,-286.24644495,0.00041881,60]
[421732864,1778075446000,-151.0,0.000418,120]
[421732878,1778075446000,-5432.2,0.000419,30]
[421732876,1778075446000,-500.0,0.00041894,60]
[421732874,1778075446000,-161.0,0.0004188,120]
[421732870,1778075446000,-200.0,0.00041856,120]
[421732866,1778075446000,-151.0,0.000418,120]
[421732871,1778075446000,-1100.0,0.00041862,120]
[421732868,1778075446000,-151.0,0.000418,7]
[421732869,1778075446000,-510.0,0.00041821,18]
[421732873,1778075446000,-323.91,0.00041864,120]
[421732877,1778075446000,-500.0,0.00041899,8]
[421732879,1778075446000,-234.63,0.000419,30]
[421732880,1778075446000,-150.54233273,0.000419,120]
[421732872,1778075446000,-153.21,0.00041862,120]
[421732917,1778075446000,-151.0,0.00041999,120]
[421732925,1778075446000,-500.0,0.00041999,120]
[421732922,1778075446000,-151.0,0.00041999,120]
[421732946,1778075446000,-1030.0,0.00041999,120]
[421732948,1778075446000,-151.0,0.00041999,120]
[421732950,1778075446000,-151.0,0.00041999,120]
[421732957,1778075446000,-500.0,0.00041999,120]
[421732954,1778075446000,-151.0,0.00041999,120]
[421732956,1778075446000,-151.0,0.00041999,120]
[421732951,1778075446000,-500.0,0.00041999,120]
[421732952,1778075446000,-231.50799291,0.00041999,120]
[421732949,1778075446000,-1068.11,0.00041999,120]
[421732958,1778075446000,-1500.0,0.00041999,30]
[421732942,1778075446000,-500.0,0.00041999,120]
[421732955,1778075446000,-800.69426558,0.00041999,120]
[421732960,1778075446000,-518.5,0.00041999,120]
[421732959,1778075446000,-151.0,0.00041999,120]
[421732962,1778075446000,-294.94632003,0.00041999,120]
[421732961,1778075446000,-151.0,0.00041999,120]
[421732963,1778075446000,-1555.5,0.00041999,30]
[421732968,1778075446000,-151.0,0.00041999,120]
[421732923,1778075446000,-6888.0,0.00041999,120]
[421732967,1778075446000,-249.54018433,0.00041999,120]
[421732966,1778075446000,-1613.0535,0.00041999,30]
[421732964,1778075446000,-156.587,0.00041999,120]
[421732953,1778075446000,-1107.63007,0.00041999,120]
[421732947,1778075446000,-500.0,0.00041999,120]
[421732965,1778075446000,-151.0,0.00041999,120]
[421732943,1778075446000,-151.0,0.00041999,120]
[421732945,1778075446000,-151.0,0.00041999,120]
[421732924,1778075446000,-500.0,0.00041999,120]
[421732919,1778075446000,-151.0,0.00041999,120]
[421732920,1778075446000,-500.0,0.00041999,120]
[421732921,1778075446000,-520.0,0.00041999,120]
[421732912,1778075446000,-500.0,0.00041999,45]
[421732927,1778075446000,-156.587,0.00041999,120]
[421732929,1778075446000,-500.0,0.00041999,120]
[421732939,1778075446000,-343.85692601,0.00041999,120]
[421732928,1778075446000,-7142.856,0.00041999,120]
[421732933,1778075446000,-500.0,0.00041999,120]
[421732915,1778075446000,-500.0,0.00041999,54]
[421732934,1778075446000,-579.88197956,0.00041999,120]
[421732940,1778075446000,-151.0,0.00041999,120]
[421732941,1778075446000,-200.0,0.00041999,120]
[421732936,1778075446000,-151.0,0.00041999,120]
[421732937,1778075446000,-200.0,0.00041999,120]
[421732938,1778075446000,-500.0,0.00041999,120]
[421732944,1778075446000,-200.0,0.00041999,120]
[421732930,1778075446000,-559.19188,0.00041999,120]
[421732935,1778075446000,-168.3888056,0.00041999,120]
[421732932,1778075446000,-3873.61435394,0.00041999,120]
[421732931,1778075446000,-162.380719,0.00041999,120]
[421732991,1778075447000,-500.0,0.00041999,120]
[421733000,1778075447000,-500.0,0.00041999,120]
[421732995,1778075447000,-1865.36488657,0.00041999,30]
[421733003,1778075447000,-602.39591087,0.00041999,30]
[421732994,1778075447000,-500.0,0.00041999,120]
[421732997,1778075447000,-1934.38338737,0.00041999,30]
[421732996,1778075447000,-500.0,0.00041999,120]
[421732998,1778075447000,-500.0,0.00041999,120]
[421732992,1778075447000,-1734.62772924,0.00041999,30]
[421733005,1778075447000,-500.0,0.00041999,120]
[421733002,1778075447000,-500.0,0.00041999,120]
[421732999,1778075447000,-2005.9555727,0.00041999,30]
[421733004,1778075447000,-500.0,0.00041999,120]
[421733011,1778075447000,-500.0,0.00041999,120]
[421733006,1778075447000,-500.0,0.00041999,120]
[421733012,1778075447000,-500.0,0.00041999,120]
[421733013,1778075447000,-151.0,0.00041999,120]
[421732988,1778075447000,-500.0,0.00041999,120]
[421733014,1778075447000,-151.0,0.00041999,120]
[421733001,1778075447000,-2080.17592889,0.00041999,30]
[421732989,1778075447000,-151.0,0.00041999,120]
[421732979,1778075447000,-1000.0,0.00041999,120]
[421732993,1778075447000,-1798.80895522,0.00041999,30]
[421733007,1778075447000,-500.0,0.00041999,120]
[421732969,1778075447000,-1672.7364795,0.00041999,30]
[421732970,1778075447000,-151.0,0.00041999,120]
[421732972,1778075447000,-231.50799291,0.00041999,120]
[421732971,1778075447000,-151.0,0.00041999,120]
[421732973,1778075447000,-151.0,0.00041999,120]
[421732981,1778075447000,-151.0,0.00041999,120]
[421732974,1778075447000,-151.0,0.00041999,120]
[421732975,1778075447000,-500.0,0.00041999,120]
[421732977,1778075447000,-500.0,0.00041999,120]
[421732976,1778075447000,-151.0,0.00041999,120]
[421732978,1778075447000,-151.0,0.00041999,120]
[421732980,1778075447000,-500.0,0.00041999,120]
[421732983,1778075447000,-151.0,0.00041999,120]
[421732982,1778075447000,-1000.0,0.00041999,120]
[421732986,1778075447000,-1000.0,0.00041999,120]
[421732987,1778075447000,-151.0,0.00041999,120]
[421732984,1778075447000,-500.0,0.00041999,120]
[421732990,1778075447000,-1018.76801602,0.00041999,120]
[421732985,1778075447000,-151.0,0.00041999,120]
[421733010,1778075447000,-500.0,0.00041999,120]
[421733049,1778075447000,-50000.0,0.00042,120]
[421733009,1778075447000,-500.0,0.00041999,120]
[421733038,1778075447000,-155.1,0.00029223,30]
[421733041,1778075447000,-724.83131769,0.0003827,2]
[421733051,1778075447000,-29446.45486225,0.00042,120]
[421733040,1778075447000,-271.34449712,0.0003827,2]
[421733042,1778075447000,-301.2859328,0.0003827,2]
[421733044,1778075447000,-769.0,0.00040321,60]
[421733045,1778075447000,-526.0,0.00040321,60]
[421733050,1778075447000,-50000.0,0.00042,120]
[421733048,1778075447000,-20688.03425185,0.00042,120]
[421733047,1778075447000,-2281.68174761,0.00041587,2]
[421733055,1778075447000,-13873.52745725,0.00042,120]
[421733046,1778075447000,-1116.31825239,0.00041587,2]
[421733053,1778075447000,-20114.40667582,0.00042,120]
[421733057,1778075447000,-297.14999998,0.00042,120]
[421733056,1778075447000,-22494.37023389,0.00042,120]
[421733054,1778075447000,-600.0,0.00042,120]
[421733058,1778075447000,-8170.24074317,0.00042,120]
[421733052,1778075447000,-439.13846193,0.00042,120]
[421733015,1778075447000,-151.0,0.00041999,120]
[421733036,1778075447000,-155.1,0.00027397,2]
[421733035,1778075447000,-155.1,0.00026484,30]
[421733043,1778075447000,-3398.0,0.00038587,2]
[421733039,1778075447000,-155.12,0.00030136,2]
[421733016,1778075447000,-151.0,0.00041999,120]
[421733018,1778075447000,-151.0,0.00041999,120]
[421733017,1778075447000,-151.0,0.00041999,120]
[421733019,1778075447000,-151.0,0.00041999,120]
[421733020,1778075447000,-25999.70684573,0.00042,120]
[421733021,1778075447000,-29311.96574815,0.00042,120]
[421733023,1778075447000,-180.95,0.00029102,7]
[421733022,1778075447000,-180.95,0.00029038,2]
[421733027,1778075447000,-180.95,0.00029167,30]
[421733008,1778075447000,-500.0,0.00041999,120]
[421733025,1778075447000,-725.91408592,0.00029337,7]
[421733026,1778075447000,-216.02751849,0.00029437,7]
[421733029,1778075447000,-1337.62805461,0.00029537,7]
[421733028,1778075447000,-1783.97248151,0.00029437,7]
[421733030,1778075447000,-180.95,0.00029232,2]
[421733032,1778075447000,-37.78616173,0.0003827,2]
[421733031,1778075447000,-662.37194539,0.00029537,7]
[421733033,1778075447000,-155.1,0.00024658,2]
[421733034,1778075447000,-155.1,0.00025571,7]
[421733024,1778075447000,-86.34756,0.00029337,7]
[421733037,1778075447000,-155.1,0.0002831,7]
[421733059,1778075448000,-506.0,0.00042,120]
[421733060,1778075461000,2500.0,0.00025711,120]
[421733063,1778075988000,250.0,0.00014,2]
[421733064,1778076005000,266.33,0.00029945,120]
[421733066,1778076251000,474.47361691,0.0001611,15]
[421733067,1778076282000,22969.19926682,0.00012,2]
[421733069,1778076328000,151.11654153,0.0002817,120]
[421733070,1778076333000,6986.59103248,0.000107,2]
[421733075,1778076425000,-891.8712008,0.00014698,2]
[421733074,1778076425000,-180.869,0.00014406,2]
[421733073,1778076425000,-760.642,0.00014406,2]
[421733081,1778076549000,-300.0,0.00014598,2]
[421733082,1778076549000,-1698.10207932,0.00014599,2]
[421733083,1778076551000,364.230264,0.000294,120]
[421733084,1778076599000,182.115132,0.000294,120]
[421733101,1778076631000,-500.0,0.00014799,2]
[421733098,1778076631000,-601.81882007,0.00014599,2]
[421733097,1778076631000,-1982.90913914,0.00014599,2]
[421733094,1778076631000,-10571.92,0.00014599,2]
[421733104,1778076631000,-12323.73486987,0.000149,2]
[421733092,1778076631000,-612.58360348,0.00014599,2]
[421733095,1778076631000,-445.16237278,0.00014599,2]
[421733093,1778076631000,-1378.17418521,0.00014599,2]
[421733091,1778076631000,-325.96639652,0.00014598,2]
[421733090,1778076631000,-317.03360348,0.00014598,2]
[421733096,1778076631000,-1180.0,0.00014599,2]
[421733099,1778076631000,-1430.20872063,0.00014699,2]
[421733112,1778076631000,-500.0,0.00014999,2]
[421733100,1778076631000,-155.31595113,0.00014699,2]
[421733103,1778076631000,-794.73591195,0.000149,2]
[421733114,1778076631000,-474.29628764,0.00014999,2]
[421733115,1778076631000,-500.0,0.00014999,2]
[421733111,1778076631000,-500.0,0.00014999,2]
[421733109,1778076631000,-240.87428479,0.00014999,2]
[421733113,1778076631000,-500.0,0.00014999,2]
[421733110,1778076631000,-618.92060478,0.00014999,2]
[421733107,1778076631000,-12000.96006383,0.0001499,2]
[421733106,1778076631000,-1791.02892823,0.00014989,2]
[421733105,1778076631000,-958.86187701,0.000149,2]
[421733102,1778076631000,-154.41572871,0.000149,2]
[421733108,1778076631000,-159.49821985,0.0001499,2]
[421733149,1778076632000,-607.20667203,0.00014999,2]
[421733139,1778076632000,-607.20667203,0.00014999,2]
[421733144,1778076632000,-607.20667203,0.00014999,2]
[421733147,1778076632000,-607.20667203,0.00014999,2]
[421733153,1778076632000,-607.20667203,0.00014999,2]
[421733148,1778076632000,-607.20667203,0.00014999,2]
[421733154,1778076632000,-607.20667203,0.00014999,2]
[421733145,1778076632000,-607.20667203,0.00014999,2]
[421733146,1778076632000,-607.20667203,0.00014999,2]
[421733157,1778076632000,-607.20667203,0.00014999,2]
[421733151,1778076632000,-607.20667203,0.00014999,2]
[421733152,1778076632000,-607.20667203,0.00014999,2]
[421733156,1778076632000,-607.20667203,0.00014999,2]
[421733166,1778076632000,-607.20667203,0.00014999,2]
[421733140,1778076632000,-607.20667203,0.00014999,2]
[421733159,1778076632000,-607.20667203,0.00014999,2]
[421733167,1778076632000,-607.20667203,0.00014999,2]
[421733158,1778076632000,-607.20667203,0.00014999,2]
[421733155,1778076632000,-607.20667203,0.00014999,2]
[421733150,1778076632000,-607.20667203,0.00014999,2]
[421733138,1778076632000,-607.20667203,0.00014999,2]
[421733136,1778076632000,-607.20667203,0.00014999,2]
[421733135,1778076632000,-607.20667203,0.00014999,2]
[421733165,1778076632000,-607.20667203,0.00014999,2]
[421733116,1778076632000,-175.61874383,0.00014999,2]
[421733128,1778076632000,-607.20667203,0.00014999,2]
[421733129,1778076632000,-607.20667203,0.00014999,2]
[421733130,1778076632000,-607.20667203,0.00014999,2]
[421733131,1778076632000,-607.20667203,0.00014999,2]
[421733118,1778076632000,-500.0,0.00014999,2]
[421733121,1778076632000,-607.20667203,0.00014999,2]
[421733123,1778076632000,-607.20667203,0.00014999,2]
[421733137,1778076632000,-607.20667203,0.00014999,2]
[421733119,1778076632000,-607.20667203,0.00014999,2]
[421733126,1778076632000,-607.20667203,0.00014999,2]
[421733120,1778076632000,-607.20667203,0.00014999,2]
[421733124,1778076632000,-607.20667203,0.00014999,2]
[421733133,1778076632000,-607.20667203,0.00014999,2]
[421733132,1778076632000,-607.20667203,0.00014999,2]
[421733141,1778076632000,-607.20667203,0.00014999,2]
[421733134,1778076632000,-607.20667203,0.00014999,2]
[421733142,1778076632000,-607.20667203,0.00014999,2]
[421733143,1778076632000,-607.20667203,0.00014999,2]
[421733122,1778076632000,-607.20667203,0.00014999,2]
[421733163,1778076632000,-607.20667203,0.00014999,2]
[421733191,1778076632000,-1127.72079932,0.00014999,2]
[421733160,1778076632000,-607.20667203,0.00014999,2]
[421733186,1778076632000,-1127.72079932,0.00014999,2]
[421733189,1778076632000,-1127.72079932,0.00014999,2]
[421733193,1778076632000,-1127.72079932,0.00014999,2]
[421733203,1778076632000,-1127.72079932,0.00014999,2]
[421733197,1778076632000,-1127.72079932,0.00014999,2]
[421733162,1778076632000,-607.20667203,0.00014999,2]
[421733192,1778076632000,-1127.72079932,0.00014999,2]
[421733195,1778076632000,-1127.72079932,0.00014999,2]
[421733196,1778076632000,-1127.72079932,0.00014999,2]
[421733194,1778076632000,-1127.72079932,0.00014999,2]
[421733198,1778076632000,-1127.72079932,0.00014999,2]
[421733199,1778076632000,-1127.72079932,0.00014999,2]
[421733202,1778076632000,-1127.72079932,0.00014999,2]
[421733201,1778076632000,-1127.72079932,0.00014999,2]
[421733205,1778076632000,-1127.7207993,0.00014999,2]
[421733208,1778076632000,-1127.7207993,0.00014999,2]
[421733206,1778076632000,-1127.7207993,0.00014999,2]
[421733204,1778076632000,-1127.72079932,0.00014999,2]
[421733209,1778076632000,-246.31385065,0.00014999,2]
[421733207,1778076632000,-1127.7207993,0.00014999,2]
[421733187,1778076632000,-1127.72079932,0.00014999,2]
[421733200,1778076632000,-1127.72079932,0.00014999,2]
[421733188,1778076632000,-1127.72079932,0.00014999,2]
[421733161,1778076632000,-607.20667203,0.00014999,2]
[421733190,1778076632000,-1127.72079932,0.00014999,2]
[421733168,1778076632000,-607.20667203,0.00014999,2]
[421733171,1778076632000,-607.20667203,0.00014999,2]
[421733174,1778076632000,-607.20667203,0.00014999,2]
[421733170,1778076632000,-607.20667203,0.00014999,2]
[421733179,1778076632000,-1127.72079932,0.00014999,2]
[421733178,1778076632000,-1127.72079932,0.00014999,2]
[421733169,1778076632000,-607.20667203,0.00014999,2]
[421733177,1778076632000,-1127.72079932,0.00014999,2]
[421733164,1778076632000,-607.20667203,0.00014999,2]
[421733175,1778076632000,-1127.72079932,0.00014999,2]
[421733172,1778076632000,-607.20667203,0.00014999,2]
[421733176,1778076632000,-1127.72079932,0.00014999,2]
[421733173,1778076632000,-607.20667203,0.00014999,2]
[421733182,1778076632000,-1127.72079932,0.00014999,2]
[421733183,1778076632000,-1127.72079932,0.00014999,2]
[421733181,1778076632000,-1127.72079932,0.00014999,2]
[421733184,1778076632000,-1127.72079932,0.00014999,2]
[421733185,1778076632000,-1127.72079932,0.00014999,2]
[421733180,1778076632000,-1127.72079932,0.00014999,2]
[421733222,1778076637000,-150.0,0.00014999,2]
[421733220,1778076637000,-881.40694865,0.00014999,2]
[421733221,1778076637000,-1127.7207993,0.00014999,2]
[421733224,1778076637000,-7906.75379404,0.00015,2]
[421733223,1778076637000,-1936.16602072,0.00015,2]
[421733233,1778076638000,-582.57802036,0.00015,2]
[421733232,1778076638000,-907.4749,0.00015,2]
[421733231,1778076638000,-203.70972586,0.00015,2]
[421733229,1778076638000,-26275.76890073,0.00015,2]
[421733230,1778076638000,-380.52932165,0.00015,2]
[421733228,1778076638000,-2603.26883633,0.00015,2]
[421733227,1778076638000,-993.34152341,0.00015,2]
[421733226,1778076638000,-13610.53787081,0.00015,2]
[421733225,1778076638000,-1023.26934686,0.00015,2]
[421733262,1778076640000,-799.41080678,0.00015,2]
[421733269,1778076640000,-1893.14056371,0.00015,2]
[421733323,1778076641000,-3454.98020714,0.00015,2]
[421733338,1778076641000,-1999.95024874,0.00015,2]
[421733331,1778076641000,-559042.72522744,0.00015,2]
[421733551,1778076643000,-1909.66153725,0.00015,2]
[421733557,1778076643000,-40592.49999999,0.00015,2]
[421733597,1778076643000,-3642.70196642,0.00015,2]
[421733589,1778076643000,-2314.8811487,0.00015,2]
[421733567,1778076643000,-1189.45646289,0.00015,2]
[421733651,1778076645000,-55580.279769,0.00015,2]
[421733650,1778076645000,-444.58999998,0.00015,2]
[421733649,1778076645000,-1095.68907277,0.00015,2]
[421733648,1778076645000,-42264.28998961,0.00015,2]
[421733647,1778076645000,-525.16371791,0.00015,2]
[421733652,1778076645000,-7100.27716532,0.00015,2]
[421733661,1778076646000,-1641.005785,0.00015,2]
[421733656,1778076646000,-471.23750134,0.00015,2]
[421733655,1778076646000,-377.0455958,0.00015,2]